bitfinex/quotes_SOLUSD_20250719
["timestamp","ask_amount","ask_price","bid_price","bid_amount"]
[1752952313561,45.41320231,176.27,176.24,0.74]
[1752952314285,39.74,176.27,176.24,4.38381327]
[1752952314598,39.74,176.27,176.25,0.71]
[1752952314599,45.41320153,176.27,176.25,0.71]
[1752952315792,45.41320153,176.27,176.24,3.67381327]
[1752952315977,45.41320153,176.27,176.26,0.71]
[1752952316176,45.41320153,176.27,176.24,0.74]
[1752952316389,45.41320153,176.27,176.24,0.03]
[1752952316565,45.41320153,176.27,176.25,0.71]
[1752952317199,39.74,176.27,176.26,0.71]
[1752952317607,45.4131151,176.27,176.26,0.71]
[1752952318795,39.74,176.27,176.26,0.71]
[1752952319476,49.05692837,176.27,176.24,0.74]
[1752952320280,5.67248613,176.29,176.26,3.64381327]
[1752952320523,45.43248613,176.29,176.27,0.71]
[1752952321301,39.76,176.29,176.28,0.71]
[1752952321472,5.67173532,176.32,176.28,4.35381327]
[1752952321669,40.12,176.31,176.29,4.35381327]
[1752952321892,40.12,176.32,176.3,0.71]
[1752952322705,40.12,176.32,176.3,4.35381327]
[1752952323214,0.06,176.33,176.31,4.35381327]
[1752952323393,0.06,176.33,176.32,3.64381327]
[1752952323595,0.06,176.33,176.32,4.35381327]
[1752952324810,3.70381327,176.33,176.3,0.71]
[1752952325122,40.1,176.32,176.3,0.71]
[1752952326110,0.5,176.31,176.3,0.71]
[1752952326304,40.1,176.32,176.3,0.71]
[1752952327382,40.1,176.32,176.3,3.64381327]
[1752952327582,40.1,176.32,176.31,0.71]
[1752952327898,45.77150635,176.32,176.31,0.71]
[1752952328313,0.06,176.33,176.31,0.71]
[1752952328489,0.06,176.33,176.31,4.35381327]
[1752952328806,0.06,176.33,176.32,0.71]
[1752952329514,0.06,176.33,176.32,4.35381327]
[1752952330210,0.06,176.33,176.32,0.71]
[1752952330408,0.06,176.33,176.32,4.35381327]
[1752952332319,0.06,176.33,176.32,11.53541962]
[1752952333796,0.06,176.33,176.32,5.86391327]
[1752952338806,0.06,176.33,176.3,0.71]
[1752952338997,0.06,176.33,176.31,4.35381327]
[1752952339201,0.06,176.33,176.32,3.64381327]
[1752952339529,0.06,176.33,176.32,4.35381327]
[1752952341319,0.06,176.33,176.32,30.35381327]
[1752952342421,0.06,176.33,176.32,0.71]
[1752952342621,0.06,176.33,176.32,4.35381327]
[1752952349124,0.06,176.33,176.32,10.02531962]
[1752952349828,0.06,176.33,176.32,56.44691962]
[1752952351328,0.06,176.33,176.32,52.80310635]
[1752952351504,0.06,176.33,176.32,56.44691962]
[1752952356525,0.06,176.33,176.32,62.84691962]
[1752952356710,0.06,176.36,176.35,26.0]
[1752952356917,0.06,176.36,176.35,69.62381327]
[1752952357342,0.06,176.36,176.35,70.31381327]
[1752952358224,0.06,176.36,176.35,75.9843548]
[1752952360912,0.06,176.36,176.35,72.32054153]
[1752952361220,0.06,176.36,176.35,75.9643548]
[1752952365018,0.06,176.36,176.35,92.74903877]
[1752952365220,0.06,176.38,176.36,50.76468397]
[1752952365417,0.06,176.38,176.37,66.58538559]
[1752952365622,0.06,176.38,176.37,67.27538559]
[1752952366547,0.06,176.39,176.38,30.46031051]
[1752952366853,0.06,176.39,176.38,31.15031051]
[1752952367743,0.06,176.39,176.38,36.81988755]
[1752952367940,0.06,176.39,176.38,37.38684525]
[1752952369341,0.06,176.41,176.4,26.0]
[1752952369550,0.06,176.41,176.4,73.75451996]
[1752952369751,0.06,176.41,176.4,74.44451996]
[1752952370325,0.06,176.41,176.4,108.42451996]
[1752952370832,0.06,176.43,176.41,50.76468397]
[1752952371038,0.06,176.46,176.44,50.76468397]
[1752952371269,0.06,176.46,176.44,94.36849724]
[1752952371431,0.06,176.46,176.44,95.05849724]
[1752952372546,0.06,176.46,176.44,95.62526214]
[1752952372744,0.06,176.46,176.44,107.69291119]
[1752952373549,0.06,176.47,176.45,54.40849724]
[1752952373736,0.06,176.47,176.46,95.0151979]
[1752952373953,0.06,176.47,176.46,95.6651979]
[1752952374960,0.06,176.47,176.46,101.33220458]
[1752952375337,0.06,176.47,176.46,67.35220458]
[1752952375551,0.06,176.47,176.46,73.75220458]
[1752952377644,0.06,176.47,176.46,12.71700668]
[1752952377840,0.06,176.47,176.46,56.42081995]
[1752952378159,0.06,176.47,176.46,55.77081995]
[1752952378842,0.06,176.47,176.46,50.10381327]
[1752952379359,0.06,176.47,176.46,55.77081995]
[1752952379529,0.06,176.47,176.46,66.06]
[1752952379732,0.06,176.47,176.46,69.70381327]
[1752952379961,0.78,176.47,176.46,69.74381327]
[1752952380466,0.78,176.47,176.46,43.74381327]
[1752952380837,0.78,176.47,176.46,40.1]
[1752952381158,0.78,176.47,176.45,43.74381327]
[1752952381354,0.72,176.46,176.45,43.74381327]
[1752952384660,0.06,176.47,176.45,43.74381327]
[1752952385040,0.06,176.47,176.46,4.29381327]
[1752952386756,0.06,176.47,176.46,3.64381327]
[1752952388138,0.78,176.47,176.46,3.64381327]
[1752952389051,0.06,176.47,176.46,3.64381327]
[1752952389562,0.78,176.47,176.46,3.64381327]
[1752952391763,0.06,176.47,176.46,3.64381327]
[1752952395051,0.06,176.47,176.45,40.1]
[1752952395372,0.06,176.47,176.46,3.64381327]
[1752952395753,0.78,176.47,176.46,3.64381327]
[1752952396660,0.78,176.47,176.45,40.13]
[1752952396861,0.78,176.47,176.45,43.77381327]
[1752952397953,0.06,176.47,176.45,43.77381327]
[1752952398458,0.06,176.47,176.46,3.64381327]
[1752952400375,0.06,176.47,176.46,4.29381327]
[1752952400549,0.06,176.47,176.46,3.64381327]
[1752952403965,0.74,176.47,176.46,3.64381327]
[1752952404757,0.74,176.47,176.45,40.13]
[1752952404955,0.74,176.47,176.46,3.64381327]
[1752952405364,0.74,176.47,176.45,40.13]
[1752952405573,0.74,176.47,176.46,3.64381327]
[1752952405758,0.06,176.47,176.46,3.64381327]
[1752952408064,0.06,176.47,176.46,4.30381327]
[1752952416192,0.06,176.47,176.46,4.33381327]
[1752952418803,0.06,176.47,176.46,3.67381327]
[1752952419181,0.06,176.47,176.46,0.03]
[1752952420792,0.06,176.47,176.46,3.67381327]
[1752952422102,0.06,176.47,176.46,4.33381327]
[1752952424716,0.06,176.47,176.46,10.00081995]
[1752952425086,0.06,176.47,176.46,8.68511967]
[1752952426993,0.06,176.47,176.46,9.99466208]
[1752952431217,0.06,176.49,176.48,26.0]
[1752952431390,0.06,176.49,176.48,98.39663121]
[1752952431593,0.06,176.49,176.48,99.05663121]
[1752952433111,0.06,176.49,176.48,110.39399567]
[1752952435914,0.06,176.49,176.48,116.79399567]
[1752952436118,0.06,176.49,176.48,116.22735923]
[1752952436421,0.06,176.49,176.48,110.55635923]
[1752952437901,0.06,176.49,176.48,116.22735923]
[1752952440225,0.06,176.49,176.48,110.55635923]
[1752952440391,0.2,176.51,176.5,16.78468397]
[1752952440592,0.06,176.53,176.52,42.78468397]
[1752952440803,0.06,176.54,176.53,16.78468397]
[1752952441115,0.06,176.54,176.53,21.14233937]
[1752952441325,0.06,176.58,176.54,22.45568397]
[1752952441496,0.06,176.58,176.54,61.40878323]
[1752952441701,0.06,176.58,176.54,95.41878323]
[1752952442426,0.06,176.58,176.54,100.51677802]
[1752952443415,0.06,176.58,176.54,101.08322188]
[1752952443916,0.06,176.58,176.55,58.06999477]
[1752952444116,0.06,176.58,176.57,76.79468397]
[1752952444310,0.06,176.62,176.61,26.0]
[1752952444494,0.06,176.62,176.61,69.3376554]
[1752952444693,0.06,176.62,176.61,70.0576554]
[1752952444921,0.06,176.62,176.61,70.19434186]
[1752952445122,0.06,176.62,176.61,70.19331644]
[1752952445498,0.06,176.62,176.61,86.97800041]
[1752952445695,0.06,176.64,176.62,16.78468397]
[1752952445995,0.06,176.64,176.63,60.25898776]
[1752952446209,0.06,176.64,176.63,63.77928747]
[1752952446513,0.06,176.64,176.63,69.44083986]
[1752952448023,0.2,176.65,176.64,16.78468397]
[1752952448212,0.2,176.65,176.64,21.14233937]
[1752952448417,0.2,176.65,176.64,26.80357125]
[1752952450232,0.88,176.65,176.64,43.4176554]
[1752952450607,0.88,176.65,176.64,43.98809369]
[1752952451327,0.2,176.65,176.64,43.98809369]
[1752952452316,0.88,176.65,176.64,43.98809369]
[1752952452713,0.88,176.65,176.64,40.35043829]
[1752952452907,0.88,176.65,176.64,43.98809369]
[1752952453233,0.2,176.65,176.64,43.98809369]
[1752952454614,0.88,176.65,176.64,43.98809369]
[1752952454931,0.88,176.65,176.64,40.35043829]
[1752952455241,10.1785668,176.65,176.64,0.09043829]
[1752952458447,6.5409114,176.65,176.64,0.09043829]
[1752952461241,10.1785668,176.65,176.64,0.09043829]
[1752952470226,6.5409114,176.65,176.64,0.09043829]
[1752952470427,10.1785668,176.65,176.64,0.09043829]
[1752952476031,6.5409114,176.65,176.64,0.09043829]
[1752952476229,10.1785668,176.65,176.64,0.09043829]
[1752952478459,41.11552928,176.65,176.58,26.0]
[1752952478625,3.6376554,176.59,176.55,6.4]
[1752952478825,0.71,176.6,176.55,0.72]
[1752952479148,3.6376554,176.59,176.55,0.72]
[1752952479327,4.3476554,176.59,176.55,26.72]
[1752952480244,4.3476554,176.59,176.55,0.72]
[1752952480451,5.66315551,176.58,176.55,0.72]
[1752952480835,5.66315551,176.58,176.56,0.72]
[1752952481133,5.66315551,176.58,176.54,3.6676554]
[1752952481134,5.66315551,176.58,176.54,4.3876554]
[1752952481455,10.01081091,176.58,176.54,0.75]
[1752952482444,5.663797,176.56,176.54,0.03]
[1752952482654,9.3014524,176.56,176.54,0.03]
[1752952482860,5.663797,176.56,176.54,0.03]
[1752952483338,5.663797,176.56,176.54,0.75]
[1752952483539,5.663797,176.56,176.54,0.03]
[1752952483742,10.0114524,176.56,176.54,0.03]
[1752952484254,4.3476554,176.55,176.54,0.03]
[1752952484464,10.01177321,176.55,176.54,0.03]
[1752952486232,9.30177321,176.55,176.54,0.03]
[1752952486750,10.01177321,176.55,176.54,0.03]
[1752952487548,9.30177321,176.55,176.54,0.03]
[1752952490051,10.01177321,176.55,176.54,0.03]
[1752952490524,9.30177321,176.55,176.54,0.03]
[1752952496255,5.66411781,176.55,176.54,0.03]
[1752952496435,9.30177321,176.55,176.54,0.03]
[1752952501032,8.691968,176.55,176.54,0.03]
[1752952501759,16.78468397,176.54,176.47,0.03]
[1752952502062,7.99421465,176.48,176.47,0.03]
[1752952502557,8.69421465,176.48,176.47,0.03]
[1752952503056,10.00725762,176.48,176.47,0.03]
[1752952506861,6.36636446,176.48,176.47,0.03]
[1752952507037,10.00725762,176.48,176.47,0.03]
[1752952521057,9.30725762,176.48,176.47,0.03]
[1752952521772,5.66636446,176.48,176.47,0.03]
[1752952521974,9.30725762,176.48,176.47,0.03]
[1752952522475,10.00725762,176.48,176.47,0.03]
[1752952528161,26.79194159,176.48,176.47,0.03]
[1752952529080,25.48180077,176.48,176.47,0.03]
[1752952533986,65.64180077,176.48,176.47,0.03]
[1752952534882,22.45104843,176.48,176.47,0.03]
[1752952535178,48.13692204,176.49,176.47,0.73]
[1752952535369,45.8061697,176.49,176.47,0.73]
[1752952535758,40.14,176.49,176.47,0.73]
[1752952535975,45.80570971,176.51,176.47,3.06075234]
[1752952536171,48.13646205,176.51,176.48,0.7]
[1752952536559,40.14,176.51,176.48,0.7]
[1752952537180,40.14,176.51,176.48,3.03075234]
[1752952537683,40.14,176.51,176.47,0.03]
[1752952537684,2.33075234,176.55,176.5,2.33075234]
[1752952537906,40.14,176.54,176.51,3.03075234]
[1752952538063,45.80452152,176.54,176.52,0.7]
[1752952538781,40.14,176.54,176.53,0.7]
[1752952539164,9.30110133,176.56,176.53,0.7]
[1752952539361,40.12,176.55,176.53,0.7]
[1752952540589,45.78411922,176.55,176.53,0.7]
[1752952540786,45.78411922,176.55,176.54,0.7]
[1752952540979,45.78411922,176.55,176.51,3.63723444]
[1752952540980,50.12135366,176.55,176.51,0.7]
[1752952541287,3.63723444,176.53,176.49,0.7]
[1752952541496,40.1,176.52,176.49,0.7]
[1752952541679,43.73723444,176.52,176.47,0.03]
[1752952541985,3.63723444,176.51,176.48,0.7]
[1752952542168,40.1,176.5,176.49,4.33723444]
[1752952542373,40.1,176.52,176.49,4.33723444]
[1752952542579,40.1,176.52,176.5,0.7]
[1752952543487,40.1,176.52,176.51,0.7]
[1752952543698,5.66475953,176.53,176.51,0.7]
[1752952543907,5.66475953,176.53,176.5,3.63723444]
[1752952544073,5.66475953,176.53,176.52,0.7]
[1752952544478,45.80448856,176.54,176.52,0.7]
[1752952544682,0.06,176.58,176.53,3.63723444]
[1752952545000,5.72320287,176.58,176.54,4.33723444]
[1752952545207,10.06043731,176.58,176.54,4.33723444]
[1752952545696,5.72320287,176.58,176.55,0.7]
[1752952546582,6.42320287,176.58,176.53,4.33723444]
[1752952546784,10.06043731,176.58,176.53,4.33723444]
[1752952547298,10.06043731,176.58,176.54,0.7]
[1752952547685,5.72320287,176.58,176.54,3.63723444]
[1752952547886,5.72320287,176.58,176.55,0.7]
[1752952548089,9.36043731,176.58,176.55,0.7]
[1752952548319,5.72320287,176.58,176.56,0.7]
[1752952550025,5.72320287,176.58,176.57,0.7]
[1752952550204,5.72320287,176.58,176.54,3.63723444]
[1752952550403,5.72320287,176.58,176.55,0.7]
[1752952551018,5.72320287,176.58,176.56,0.7]
[1752952551216,5.72320287,176.58,176.54,3.63723444]
[1752952551444,5.72320287,176.58,176.57,0.7]
[1752952551600,5.72320287,176.58,176.55,0.7]
[1752952552022,0.06,176.58,176.56,4.33723444]
[1752952552315,0.06,176.58,176.57,4.33723444]
[1752952552517,0.06,176.58,176.57,0.7]
[1752952553794,0.06,176.58,176.57,4.33723444]
[1752952554833,0.06,176.58,176.57,10.00071068]
[1752952562625,0.06,176.58,176.57,11.61161068]
[1752952562829,0.06,176.58,176.57,21.60064512]
[1752952563021,0.06,176.58,176.57,28.00064512]
[1752952564641,0.06,176.58,176.57,44.78532909]
[1752952565433,0.06,176.62,176.6,26.0]
[1752952565646,0.06,176.62,176.61,43.67723444]
[1752952565817,0.06,176.62,176.61,44.36723444]
[1752952567034,0.06,176.62,176.61,50.02942797]
[1752952583233,1e-08,176.62,176.61,75.03931194]
[1752952583452,0.2,176.65,176.64,26.0]
[1752952583644,0.2,176.65,176.64,69.57723444]
[1752952584052,0.2,176.65,176.64,70.26723444]
[1752952585239,0.2,176.65,176.64,75.92846632]
[1752952588934,0.2,176.65,176.64,35.98846632]
[1752952589353,0.2,176.65,176.64,75.88846632]
[1752952589555,0.2,176.65,176.64,72.25123188]
[1752952589758,0.2,176.65,176.64,75.88846632]
[1752952589935,0.2,176.65,176.64,65.9]
[1752952590133,0.2,176.65,176.64,69.53723444]
[1752952590335,0.91,176.65,176.64,39.9]
[1752952590538,0.91,176.65,176.64,43.55723444]
[1752952590845,0.2,176.65,176.64,43.55723444]
[1752952591771,0.2,176.65,176.64,49.90846632]
[1752952595555,0.2,176.65,176.64,56.30846632]
[1752952596761,0.2,176.65,176.64,82.30846632]
[1752952598060,0.2,176.65,176.64,95.45591585]
[1752952598234,0.2,176.65,176.64,107.10315029]
[1752952598942,0.2,176.65,176.64,107.66927347]
[1752952599559,0.06,176.68,176.67,60.01]
[1752952599744,0.06,176.69,176.68,50.79468397]
[1752952599944,0.06,176.72,176.71,42.78468397]
[1752952600148,0.06,176.72,176.71,92.00090771]
[1752952600360,0.06,176.72,176.71,75.90622374]
[1752952603189,0.2,176.76,176.71,75.90622374]
[1752952603466,0.2,176.76,176.75,3.63723444]
[1752952603689,0.2,176.76,176.75,43.59723444]
[1752952604043,0.2,176.76,176.75,39.96]
[1752952604242,0.91,176.76,176.75,39.96]
[1752952604666,0.91,176.76,176.74,39.96]
[1752952604851,0.71,176.75,176.74,39.96]
[1752952605578,0.71,176.75,176.73,39.98]
[1752952605744,0.71,176.75,176.72,39.98]
[1752952606889,5.65802874,176.74,176.72,39.98]
[1752952607052,0.71,176.73,176.72,39.98]
[1752952608384,0.71,176.73,176.71,26.0]
[1752952608385,0.71,176.73,176.71,39.98]
[1752952608748,5.65866908,176.72,176.71,39.98]
[1752952609088,6.36866908,176.72,176.71,39.98]
[1752952611060,6.36866908,176.72,176.7,43.59723444]
[1752952612071,0.06,176.73,176.7,43.59723444]
[1752952612464,0.77,176.73,176.7,43.59723444]
[1752952612661,0.77,176.73,176.7,44.28723444]
[1752952612862,0.06,176.73,176.7,44.28723444]
[1752952613192,0.06,176.73,176.7,43.59723444]
[1752952613492,0.65,176.72,176.7,43.59723444]
[1752952614981,0.06,176.73,176.7,43.59723444]
[1752952615182,0.71,176.73,176.7,43.59723444]
[1752952618077,0.65,176.72,176.7,39.96]
[1752952618671,0.06,176.73,176.7,39.96]
[1752952618672,3.69723444,176.73,176.7,39.96]
[1752952618871,0.65,176.71,176.7,39.96]
[1752952619081,0.65,176.71,176.69,39.92]
[1752952619662,0.06,176.73,176.69,39.92]
[1752952619980,5.65866908,176.72,176.69,3.63723444]
[1752952620177,6.30866908,176.72,176.69,3.63723444]
[1752952620957,0.06,176.73,176.71,3.63723444]
[1752952621162,0.06,176.73,176.69,5.6594768]
[1752952621163,0.06,176.73,176.72,44.24723444]
[1752952622369,0.06,176.73,176.72,43.55723444]
[1752952622573,0.06,176.73,176.72,39.92]
[1752952623090,0.71,176.73,176.71,39.92]
[1752952623489,0.06,176.73,176.71,39.92]
[1752952624068,4.28723444,176.72,176.68,0.03]
[1752952624272,20.42191841,176.69,176.64,0.03]
[1752952624575,3.63723444,176.65,176.64,0.03]
[1752952624776,20.42191841,176.65,176.55,4.32723444]
[1752952625086,0.65,176.64,176.59,3.63723444]
[1752952625266,3.63723444,176.6,176.55,3.63723444]
[1752952625464,4.28723444,176.6,176.56,39.92]
[1752952625666,0.65,176.59,176.56,39.92]
[1752952626188,6.31292409,176.59,176.56,39.92]
[1752952626987,0.65,176.59,176.56,39.92]
[1752952627173,0.65,176.59,176.54,0.03]
[1752952627377,0.65,176.58,176.54,52.88723444]
[1752952627680,0.65,176.58,176.54,53.57723444]
[1752952627989,3.63723444,176.59,176.54,44.29723444]
[1752952628170,9.95029365,176.59,176.54,44.29723444]
[1752952629192,9.95029365,176.59,176.54,43.60723444]
[1752952629495,9.95029365,176.59,176.55,0.69]
[1752952630902,4.28723444,176.58,176.54,43.60723444]
[1752952631078,4.28723444,176.58,176.54,44.29723444]
[1752952632893,0.65,176.58,176.54,44.29723444]
[1752952633210,9.30029365,176.59,176.55,0.72]
[1752952633376,9.95029365,176.59,176.55,0.72]
[1752952633773,30.93736736,176.65,176.55,0.03]
[1752952633978,3.63723444,176.61,176.56,4.32723444]
[1752952634283,4.28723444,176.6,176.56,0.69]
[1752952635006,9.94975957,176.6,176.56,0.69]
[1752952640286,0.65,176.59,176.55,4.35723444]
[1752952640492,9.95007161,176.59,176.55,4.35723444]
[1752952640696,9.95007161,176.59,176.55,0.72]
[1752952640996,0.65,176.58,176.55,0.03]
[1752952642089,6.3132618,176.58,176.55,0.03]
[1752952643888,4.31723444,176.57,176.55,0.03]
[1752952644290,0.68,176.56,176.55,0.03]
[1752952644880,5.66293301,176.59,176.55,0.03]
[1752952645186,3.63723444,176.61,176.56,3.63723444]
[1752952645379,0.68,176.6,176.56,4.35723444]
[1752952645574,0.68,176.6,176.56,0.72]
[1752952645884,9.98002206,176.6,176.56,0.72]
[1752952647003,6.34278762,176.6,176.56,0.72]
[1752952647310,9.98002206,176.6,176.56,0.72]
[1752952647676,9.98002206,176.6,176.56,4.35723444]
[1752952648489,6.34278762,176.6,176.56,4.35723444]
[1752952648684,9.98002206,176.6,176.56,4.35723444]
[1752952649297,0.68,176.63,176.57,4.35723444]
[1752952649478,3.63723444,176.62,176.58,4.35723444]
[1752952649696,0.68,176.63,176.59,0.72]
[1752952649893,3.63723444,176.62,176.59,0.72]
[1752952650500,9.2994005,176.62,176.59,0.72]
[1752952651206,9.9794005,176.62,176.58,3.63723444]
[1752952651383,9.9794005,176.62,176.58,4.35723444]
[1752952651886,5.66216606,176.62,176.59,0.72]
[1752952652196,9.2994005,176.62,176.59,0.72]
[1752952652918,3.87723444,176.61,176.57,26.72]
[1752952654203,0.24,176.61,176.57,30.35723444]
[1752952654399,0.24,176.6,176.56,0.03]
[1752952654598,3.63723444,176.57,176.56,0.03]
[1752952654798,3.87723444,176.57,176.56,0.03]
[1752952656314,9.54071068,176.57,176.56,0.03]
[1752952658135,5.90347624,176.57,176.56,0.03]
[1752952658290,5.66323237,176.58,176.56,0.03]
[1752952658486,9.30046681,176.58,176.56,0.03]
[1752952659511,3.63723444,176.59,176.56,0.03]
[1752952659690,3.63723444,176.6,176.56,0.03]
[1752952659894,0.68,176.61,176.57,0.72]
[1752952660101,3.63723444,176.6,176.57,0.72]
[1752952660394,9.29984572,176.6,176.57,0.72]
[1752952662796,6.34187294,176.62,176.57,0.72]
[1752952663006,6.34187294,176.62,176.58,0.72]
[1752952663210,9.97910738,176.62,176.58,0.72]
[1752952663414,3.63723444,176.61,176.58,0.72]
[1752952664721,9.29943013,176.61,176.58,0.72]
[1752952664918,9.97943013,176.61,176.57,26.0]
[1752952665218,9.97943013,176.61,176.57,26.72]
[1752952666604,9.29943013,176.61,176.57,26.72]
[1752952667511,9.97943013,176.61,176.57,26.72]
[1752952668520,6.34219569,176.61,176.57,26.72]
[1752952668827,9.97943013,176.61,176.57,26.72]
[1752952670930,6.34219569,176.61,176.57,30.35723444]
[1752952671127,3.63723444,176.62,176.58,4.35723444]
[1752952671128,5.66191343,176.62,176.58,4.35723444]
[1752952671334,9.97914787,176.62,176.58,0.72]
[1752952674310,5.66191343,176.62,176.58,0.72]
[1752952674514,0.7,176.61,176.58,0.72]
[1752952674736,9.99914787,176.62,176.58,0.72]
[1752952675234,5.66179863,176.63,176.58,10.02032693]
[1752952675443,3.63723444,176.63,176.58,9.30032693]
[1752952675647,3.63723444,176.63,176.59,0.67]
[1752952675845,4.33723444,176.63,176.59,0.67]
[1752952676446,9.35875842,176.64,176.6,0.67]
[1752952676831,10.05875842,176.64,176.6,0.67]
[1752952677023,6.42152398,176.64,176.6,4.30723444]
[1752952678819,10.05875842,176.64,176.6,0.67]
[1752952679017,0.7,176.63,176.58,6.33309249]
[1752952679237,4.33723444,176.62,176.58,26.67]
[1752952680626,0.7,176.62,176.58,35.97037919]
[1752952680831,3.69723444,176.64,176.59,4.30723444]
[1752952681140,0.06,176.64,176.6,4.30723444]
[1752952681464,0.06,176.64,176.61,0.67]
[1752952681755,0.06,176.64,176.62,4.30723444]
[1752952681916,0.06,176.64,176.63,3.63723444]
[1752952682117,0.06,176.64,176.63,0.67]
[1752952682532,0.76,176.64,176.6,0.67]
[1752952682743,0.76,176.64,176.6,9.96962375]
[1752952682949,0.06,176.64,176.61,4.30723444]
[1752952683254,0.76,176.64,176.6,4.30723444]
[1752952683629,0.06,176.64,176.61,0.67]
[1752952684239,0.06,176.64,176.61,4.30723444]
[1752952684647,0.76,176.64,176.6,3.63723444]
[1752952685151,0.76,176.64,176.6,4.30723444]
[1752952685327,0.06,176.64,176.61,0.67]
[1752952685646,0.06,176.64,176.61,4.30723444]
[1752952686024,0.06,176.64,176.62,0.67]
[1752952686657,0.06,176.64,176.61,3.63723444]
[1752952686950,0.06,176.64,176.61,4.30723444]
[1752952687752,0.06,176.64,176.61,0.67]
[1752952691941,0.06,176.64,176.61,4.30723444]
[1752952692143,0.06,176.64,176.61,3.63723444]
[1752952692350,0.06,176.64,176.62,0.67]
[1752952693749,0.06,176.64,176.63,0.67]
[1752952694551,0.06,176.64,176.63,4.30723444]
[1752952694940,0.06,176.64,176.63,9.96878683]
[1752952695962,0.06,176.64,176.63,49.82878683]
[1752952716604,0.06,176.64,176.63,75.13878683]
[1752952716875,0.06,176.64,176.61,0.71]
[1752952717178,0.69,176.63,176.61,0.03]
[1752952717557,0.06,176.64,176.62,3.63723444]
[1752952717768,0.75,176.64,176.62,3.63723444]
[1752952718468,0.06,176.64,176.62,3.63723444]
[1752952720054,0.06,176.64,176.63,0.03]
[1752952720263,0.75,176.64,176.63,0.03]
[1752952721554,0.06,176.64,176.63,0.03]
[1752952721785,0.75,176.64,176.63,0.03]
[1752952726358,0.06,176.64,176.63,30.34723444]
[1752952726559,0.06,176.64,176.63,4.34723444]
[1752952728588,0.06,176.64,176.63,10.00878683]
[1752952729115,0.06,176.64,176.63,6.37155239]
[1752952729400,0.06,176.64,176.63,10.00878683]
[1752952737203,0.75,176.64,176.63,0.03]
[1752952737930,4.38723444,176.64,176.63,0.03]
[1752952738904,0.75,176.64,176.63,0.03]
[1752952740310,0.06,176.64,176.63,0.03]
[1752952740714,0.06,176.64,176.63,0.7]
[1752952740918,0.06,176.64,176.63,4.33723444]
[1752952742491,0.06,176.64,176.63,0.03]
[1752952742810,0.75,176.64,176.63,0.03]
[1752952744421,0.06,176.64,176.63,0.03]
[1752952745894,0.75,176.64,176.63,0.03]
[1752952746097,0.06,176.64,176.63,0.03]
[1752952747823,0.75,176.64,176.63,0.03]
[1752952748120,0.06,176.64,176.63,4.33723444]
[1752952748529,0.06,176.64,176.63,0.03]
[1752952759143,0.06,176.64,176.63,0.7]
[1752952759311,0.06,176.64,176.63,4.33723444]
[1752952759839,0.06,176.64,176.63,0.03]
[1752952764232,0.06,176.64,176.63,0.7]
[1752952764439,0.06,176.64,176.63,0.03]
[1752952767543,0.74,176.64,176.63,0.03]
[1752952767936,0.06,176.64,176.63,0.03]
[1752952772953,0.06,176.64,176.63,0.7]
[1752952778967,0.06,176.64,176.63,0.03]
[1752952781973,0.06,176.64,176.63,0.7]
[1752952782344,0.06,176.64,176.63,0.03]